[Event "Snabb-SM för veteraner, 50+ 2019"]
[Site "Schackcentrum, Vegagatan 20, Gothenburg, Sweden"]
[Date "2019.10.06"]
[Round "10.11"]
[White "Kirppo, Ronny"]
[Black "Sandgren, Per-Olov"]
[Result "1-0"]
[TimeControl "15 minutes + 10 seconds per move from move one"]
[WhiteFideId "1724681"]
[BlackFideId "1713884"]
[WhiteElo "1877"]
[BlackElo "1458"]

1. d4 {[%clk 00:15:19]} Nf6 {[%clk 00:15:13]} {[%emt 00:00:07]} 2. Nf3 {[%clk
00:15:23]} {[%emt 00:00:06]} d5 {[%clk 00:15:07]} {[%emt 00:00:16]} 3. g3
{[%clk 00:15:27]} {[%emt 00:00:06]} g6 {[%clk 00:14:59]} {[%emt 00:00:18]} 4.
Bg2 {[%clk 00:15:35]} {[%emt 00:00:02]} Bg7 {[%clk 00:15:06]} {[%emt 00:00:02]}
5. c4 {[%clk 00:15:25]} {[%emt 00:00:21]} e6 {[%clk 00:15:01]} {[%emt
00:00:15]} 6. O-O {[%clk 00:15:30]} {[%emt 00:00:06]} O-O {[%clk 00:14:52]}
{[%emt 00:00:18]} 7. Nc3 {[%clk 00:15:24]} {[%emt 00:00:16]} b6 {[%clk
00:13:54]} {[%emt 00:01:08]} 8. Ne5 {[%clk 00:13:37]} {[%emt 00:01:57]} Bb7
{[%clk 00:13:17]} {[%emt 00:00:46]} 9. Bg5 {[%clk 00:12:38]} {[%emt 00:01:10]}
Nbd7 {[%clk 00:12:51]} {[%emt 00:00:48]} 10. Qd2 {[%clk 00:12:35]} {[%emt
00:00:21]} c5 {[%clk 00:12:13]} {[%emt 00:00:48]} 11. cxd5 {[%clk 00:12:21]}
{[%emt 00:00:25]} cxd4 {[%clk 00:12:09]} {[%emt 00:00:14]} 12. Qxd4 {[%clk
00:11:18]} {[%emt 00:01:13]} Nxe5 {[%clk 00:11:56]} {[%emt 00:00:23]} 13. Qxe5
{[%clk 00:11:20]} {[%emt 00:00:08]} Nxd5 {[%clk 00:11:14]} {[%emt 00:00:53]} 14.
Nxd5 {[%clk 00:06:31]} {[%emt 00:04:58]} Qxd5 {[%clk 00:10:20]} {[%emt
00:01:03]} 15. Qxg7+ {[%clk 00:06:17]} {[%emt 00:00:25]} Kxg7 {[%clk 00:10:25]}
{[%emt 00:00:06]} 16. Bxd5 {[%clk 00:06:19]} {[%emt 00:00:08]} Bxd5 {[%clk
00:10:22]} {[%emt 00:00:12]} 17. b3 {[%clk 00:05:56]} {[%emt 00:00:32]} Rac8
{[%clk 00:10:10]} {[%emt 00:00:22]} 18. Rac1 {[%clk 00:06:00]} {[%emt
00:00:08]} Rfe8 {[%clk 00:08:30]} {[%emt 00:01:50]} 19. f3 {[%clk 00:06:01]}
{[%emt 00:00:08]} h6 {[%clk 00:07:52]} {[%emt 00:00:48]} 20. Bd2 {[%clk
00:06:03]} {[%emt 00:00:08]} Red8 {[%clk 00:07:35]} {[%emt 00:00:25]} 21. Bc3+
{[%clk 00:05:30]} {[%emt 00:00:44]} Kh7 {[%clk 00:06:38]} {[%emt 00:01:07]} 22.
Kf2 {[%clk 00:05:24]} {[%emt 00:00:17]} Bb7 {[%clk 00:06:19]} {[%emt 00:00:29]}
23. Ke3 {[%clk 00:04:19]} {[%emt 00:01:15]} Rc6 {[%clk 00:05:56]} {[%emt
00:00:33]} 24. Bf6 {[%clk 00:03:53]} {[%emt 00:00:35]} Rdc8 {[%clk 00:05:17]}
{[%emt 00:00:51]} 25. Rxc6 {[%clk 00:03:51]} {[%emt 00:00:12]} Rxc6 {[%clk
00:04:49]} {[%emt 00:00:37]} 26. Rd1 {[%clk 00:03:58]} {[%emt 00:00:03]} Rc7
{[%clk 00:03:45]} {[%emt 00:01:13]} 27. h4 {[%clk 00:03:52]} {[%emt 00:00:16]}
Bd5 {[%clk 00:03:39]} {[%emt 00:00:17]} 28. Kf4 {[%clk 00:03:49]} {[%emt
00:00:13]} Rd7 {[%clk 00:03:09]} {[%emt 00:00:40]} 29. Rd2 {[%clk 00:03:18]}
{[%emt 00:00:42]} Bc6 {[%clk 00:03:02]} {[%emt 00:00:17]} 30. Rc2 {[%clk
00:03:24]} {[%emt 00:00:04]} Bb7 {[%clk 00:03:05]} {[%emt 00:00:06]} 31. e4
{[%clk 00:03:25]} {[%emt 00:00:10]} a6 {[%clk 00:02:54]} {[%emt 00:00:22]} 32.
b4 {[%clk 00:03:10]} {[%emt 00:00:25]} b5 {[%clk 00:02:56]} {[%emt 00:00:07]}
33. Rc5 {[%clk 00:02:58]} {[%emt 00:00:22]} h5 {[%clk 00:02:52]} {[%emt
00:00:14]} 34. g4 {[%clk 00:02:38]} {[%emt 00:00:30]} Kh6 {[%clk 00:02:19]}
{[%emt 00:00:43]} 35. Ke3 {[%clk 00:01:48]} {[%emt 00:01:01]} Kh7 {[%clk
00:01:20]} {[%emt 00:01:10]} 36. a3 {[%clk 00:01:48]} {[%emt 00:00:10]} Kh6
{[%clk 00:01:26]} {[%emt 00:00:03]} 37. g5+ {[%clk 00:01:12]} {[%emt 00:00:45]}
Kh7 {[%clk 00:01:34]} {[%emt 00:00:03]} 38. Be5 {[%clk 00:01:07]} {[%emt
00:00:15]} Kg8 {[%clk 00:01:31]} {[%emt 00:00:13]} 39. Rc7 {[%clk 00:01:03]}
{[%emt 00:00:14]} Rxc7 {[%clk 00:01:36]} {[%emt 00:00:05]} 40. Bxc7 {[%clk
00:01:12]} Kf8 {[%clk 00:01:42]} {[%emt 00:00:04]} 41. Kd4 {[%clk 00:01:20]}
{[%emt 00:00:01]} Ke8 {[%clk 00:01:47]} {[%emt 00:00:06]} 42. Kc5 {[%clk
00:01:06]} {[%emt 00:00:24]} Kd7 {[%clk 00:01:47]} {[%emt 00:00:09]} 43. Kb6
{[%clk 00:01:15]} {[%emt 00:00:02]} Bc8 {[%clk 00:01:47]} {[%emt 00:00:10]} 44.
Be5 {[%clk 00:01:18]} {[%emt 00:00:07]} Ke8 {[%clk 00:01:29]} {[%emt 00:00:29]}
45. Kc7 {[%clk 00:01:19]} {[%emt 00:00:09]} Bd7 {[%clk 00:01:35]} {[%emt
00:00:03]} 46. Kb7 {[%clk 00:01:28]} Kd8 {[%clk 00:01:28]} {[%emt 00:00:16]} 47.
Kxa6 {[%clk 00:01:36]} {[%emt 00:00:04]} Kc8 {[%clk 00:01:18]} {[%emt
00:00:19]} 48. Kb6 {[%clk 00:01:42]} {[%emt 00:00:04]} Be8 {[%clk 00:01:22]}
{[%emt 00:00:06]} 49. Kc5 {[%clk 00:01:35]} {[%emt 00:00:17]} Kb7 {[%clk
00:01:20]} {[%emt 00:00:12]} 50. Kd6 {[%clk 00:01:41]} {[%emt 00:00:04]} Bc6
{[%emt 00:00:55]} 51. Ke7 f5 {[%emt 00:00:13]} 52. gxf6 {[%emt 00:00:02]} 1-0